[Event "9th Bangabandhu Team Mixed 2021"]
[Site "Dhaka"]
[Date "2021.04.06"]
[Round "3.8"]
[White "Noshin, Anjum"]
[Black "Sultana, Sharmin Shirin"]
[Result "1/2-1/2"]
[ECO "B43"]
[WhiteElo "1912"]
[BlackElo "2006"]
[Annotator "ChessBase"]
[PlyCount "119"]
[EventDate "2021.04.04"]
[EventType "team-tourn"]
[EventCountry "BAN"]
[SourceTitle "playchess.com"]
[Source "ChessBase"]
[SourceQuality "1"]
[TimeControl "5400+30"]

1. e4 {[%emt 0:00:00]} c5 {[%emt 0:00:00]} 2. Nf3 {[%emt 0:00:00]} e6 {[%emt 0:00:00]} 3. d4 {[%emt 0:00:04]} cxd4 {[%emt 0:00:00]} 4. Nxd4 {[%emt 0:00:07]} a6 {[%emt 0:00:02]} 5. Nc3 {[%emt 0:00:15]} Qc7 {[%emt 0:00:24]} 6. Bd3 {[%emt 0:00:15]} Nc6 {[%emt 0:00:35]} 7. Nxc6 {[%emt 0:00:47]} dxc6 {[%emt 0:00:07]} 8. O-O {[%emt 0:00:37]} Nf6 {[%emt 0:00:48]} 9. f4 {[%emt 0:00:46]} Bc5+ {[%emt 0:03:47]} 10. Kh1 {[%emt 0:00:19]} e5 {[%emt 0:00:05]} 11. f5 {[%emt 0:01:25]} b5 {[%emt 0:01:00]} 12. Bg5 {[%emt 0:08:04]} Be7 {[%emt 0:05:19]} 13. a4 {[%emt 0:09:18]} Bb7 {[%emt 0:01:38]} 14. Qf3 {[%emt 0:09:07]} O-O {[%emt 0:07:59]} 15. Qg3 {[%emt 0:07:27]} Nh5 {[%emt 0:12:51]} 16. Qh4 {[%emt 0:01:19]} Bxg5 {[%emt 0:01:08]} 17. Qxg5 {[%emt 0:00:18]} Nf6 {[%emt 0:03:19]} 18. Rf3 {[%emt 0:07:17]} Kh8 {[%emt 0:02:44]} 19. Qh4 {[%emt 0:05:21]} b4 {[%emt 0:21:59]} 20. Nb1 {[%emt 0:04:20]} c5 {[%emt 0:14:29]} 21. b3 {[%emt 0:04:54]} Qd8 {[%emt 0:06:54]} 22. Nd2 {[%emt 0:04:13]} Nd7 {[%emt 0:04:06]} 23. Qh5 {[%emt 0:19:36]} Nf6 {[%emt 0:00:13]} 24. Qg5 {[%emt 0:04:53]} h6 {[%emt 0:01:51]} 25. Qh4 {[%emt 0:00:29]} Nh7 {[%emt 0:01:43]} 26. f6 {[%emt 0:05:47]} gxf6 {[%emt 0:05:13]} 27. Qxh6 {[%emt 0:00:39]} Rg8 {[%emt 0:00:45]} 28. Raf1 {[%emt 0:03:02]} Rg6 {[%emt 0:00:02]} 29. Qh4 {[%emt 0:01:10]} Kg7 {[%emt 0:00:05]} 30. Rg3 {[%emt 0:00:41]} Ng5 {[%emt 0:01:10]} 31. Nf3 {[%emt 0:01:27]} Qh8 {[%emt 0:00:58]} 32. Qxh8+ {[%emt 0:00:53]} Rxh8 {[%emt 0:00:01]} 33. Nxg5 {[%emt 0:00:31]} fxg5 {[%emt 0:03:06]} 34. Rf5 {[%emt 0:01:01]} f6 {[%emt 0:00:03]} 35. Rf1 {[%emt 0:00:29]} Rh4 {[%emt 0:00:46]} 36. Re1 {[%emt 0:00:14]} Rgh6 {[%emt 0:00:39]} 37. h3 {[%emt 0:00:07]} Kf8 {[%emt 0:00:46]} 38. Kg1 {[%emt 0:00:12]} Rf4 {[%emt 0:00:36]} 39. Rge3 {[%emt 0:00:25]} Rfh4 {[%emt 0:00:31]} 40. Rf1 {[%emt 0:00:42]} Ke7 {[%emt 0:00:05]} 41. Rfe1 {[%emt 0:01:18]} a5 {[%emt 0:00:47]} 42. Rf1 {[%emt 0:00:30]} Rh7 {[%emt 0:01:23]} 43. Rfe1 {[%emt 0:00:24]} g4 {[%emt 0:00:13]} 44. hxg4 {[%emt 0:00:14]} Rxg4 {[%emt 0:00:09]} 45. Kf2 {[%emt 0:00:14]} f5 {[%emt 0:00:48]} 46. Rg3 {[%emt 0:00:51]} Rxg3 {[%emt 0:00:29]} 47. Kxg3 {[%emt 0:00:06]} f4+ {[%emt 0:00:31]} 48. Kf3 {[%emt 0:00:29]} Kf6 {[%emt 0:00:25]} 49. Rg1 {[%emt 0:01:00]} Bc8 {[%emt 0:01:14]} 50. g3 {[%emt 0:00:50]} Rh3 {[%emt 0:00:33]} 51. Bf1 {[%emt 0:00:23]} Rxg3+ {[%emt 0:00:16]} 52. Rxg3 {[%emt 0:00:06]} fxg3 {[%emt 0:00:02]} 53. Kxg3 {[%emt 0:00:08]} Bb7 {[%emt 0:00:38]} 54. Kf3 {[%emt 0:00:16]} Ke7 {[%emt 0:00:21]} 55. Bc4 {[%emt 0:00:45]} Kd6 {[%emt 0:00:01]} 56. Bd3 {[%emt 0:00:18]} Bc8 {[%emt 0:00:28]} 57. Bc4 {[%emt 0:00:13]} Bb7 {[%emt 0:00:01]} 58. Bd3 {[%emt 0:00:51]} Bc8 {[%emt 0:00:22]} 59. Bc4 {[%emt 0:00:06]} Bb7 {[%emt 0:00:03]} 60. Bd3 {[%emt 0:02:27]} 1/2-1/2

[Event "9th Bangabandhu Team Mixed 2021"]
[Site "Dhaka"]
[Date "2021.04.06"]
[Round "3.9"]
[White "Sacchu, Afzal Hossain"]
[Black "Manon, Reja Neer"]
[Result "0-1"]
[ECO "A24"]
[WhiteElo "2008"]
[BlackElo "2112"]
[Annotator "ChessBase"]
[PlyCount "72"]
[EventDate "2021.04.04"]
[EventType "team-tourn"]
[EventCountry "BAN"]
[SourceTitle "playchess.com"]
[Source "ChessBase"]
[SourceQuality "1"]
[TimeControl "5400+30"]

1. c4 {[%emt 0:00:00]} e5 {[%emt 0:00:00]} 2. g3 {[%emt 0:00:00]} Nf6 {[%emt 0:00:05]} 3. Bg2 {[%emt 0:00:03]} g6 {[%emt 0:00:55]} 4. Nc3 {[%emt 0:00:36]} Bg7 {[%emt 0:00:02]} 5. d3 {[%emt 0:00:23]} O-O {[%emt 0:00:18]} 6. e4 {[%emt 0:00:18]} d6 {[%emt 0:02:01]} 7. Nge2 {[%emt 0:00:36]} Be6 {[%emt 0:00:02]} 8. O-O {[%emt 0:01:22]} c6 {[%emt 0:00:52]} 9. h3 {[%emt 0:04:55]} d5 {[%emt 0:04:52]} 10. cxd5 {[%emt 0:01:01]} cxd5 {[%emt 0:01:23]} 11. f4 {[%emt 0:03:01]} dxe4 {[%emt 0:03:57]} 12. dxe4 {[%emt 0:02:04]} Qb6+ {[%emt 0:04:16]} 13. Kh1 {[%emt 0:00:26]} exf4 {[%emt 0:00:49]} 14. gxf4 {[%emt 0:03:08]} Nc6 {[%emt 0:13:32]} 15. Na4 {[%emt 0:09:51]} Qa5 {[%emt 0:02:01]} 16. Bd2 {[%emt 0:03:14]} Qh5 {[%emt 0:04:15]} 17. Ng1 {[%emt 0:01:30]} Qb5 {[%emt 0:08:38]} 18. Nc3 {[%emt 0:18:14]} Qxb2 {[%emt 0:03:22]} 19. Rb1 {[%emt 0:03:54]} Qa3 {[%emt 0:00:36]} 20. e5 {[%emt 0:02:44]} Nh5 {[%emt 0:01:32]} 21. Nge2 {[%emt 0:00:22]} Rab8 {[%emt 0:05:54]} 22. Qe1 {[%emt 0:02:30]} Qa6 {[%emt 0:04:28]} 23. Kh2 {[%emt 0:09:16]} Qd3 {[%emt 0:06:27]} 24. Rf3 {[%emt 0:04:42]} Qd7 {[%emt 0:01:12]} 25. Rd1 {[%emt 0:02:19]} Qe7 {[%emt 0:05:21]} 26. Re3 {[%emt 0:03:23]} Bh6 {[%emt 0:06:05]} 27. Rd3 {[%emt 0:03:24]} Rbd8 {[%emt 0:02:57]} 28. Bc1 {[%emt 0:00:38]} Rxd3 {[%emt 0:01:01]} 29. Rxd3 {[%emt 0:00:01]} Bc4 {[%emt 0:00:37]} 30. Rd6 {[%emt 0:00:57]} Nxe5 {[%emt 0:01:17]} 31. fxe5 {[%emt 0:01:24]} Qxe5+ {[%emt 0:00:20]} 32. Kh1 {[%emt 0:01:15]} Bxc1 {[%emt 0:00:30]} 33. Rd4 {[%emt 0:03:54]} Bxe2 {[%emt 0:00:33]} 34. Nxe2 {[%emt 0:00:50]} Qxe2 {[%emt 0:16:50]} 35. Qxc1 {[%emt 0:00:32]} Qe5 {[%emt 0:00:00]} 36. Rd7 {[%emt 0:00:42]} Ng3+ {[%emt 0:00:00]} 0-1

[Event "9th Bangabandhu Team Mixed 2021"]
[Site "Dhaka"]
[Date "2021.04.06"]
[Round "3.10"]
[White "Rahman, Syed Mahfuzur"]
[Black "Avik, Sarker"]
[Result "1/2-1/2"]
[ECO "D61"]
[WhiteElo "2206"]
[BlackElo "2035"]
[Annotator "ChessBase"]
[PlyCount "114"]
[EventDate "2021.04.04"]
[EventType "team-tourn"]
[EventCountry "BAN"]
[SourceTitle "playchess.com"]
[Source "ChessBase"]
[SourceQuality "1"]
[TimeControl "5400+30"]

1. d4 {[%emt 0:00:00]} d5 {[%emt 0:00:00]} 2. c4 {[%emt 0:00:00]} e6 {[%emt 0:00:00]} 3. Nc3 {[%emt 0:00:00]} Nf6 {[%emt 0:00:04]} 4. Bg5 {[%emt 0:00:00]} Be7 {[%emt 0:00:17]} 5. Nf3 {[%emt 0:00:00]} Nbd7 {[%emt 0:00:16]} 6. e3 {[%emt 0:00:10]} h6 {[%emt 0:00:09]} 7. Bh4 {[%emt 0:00:50]} O-O {[%emt 0:00:26]} 8. Qc2 {[%emt 0:03:44]} c5 {[%emt 0:00:25]} 9. cxd5 {[%emt 0:01:30]} Nxd5 {[%emt 0:00:48]} 10. Bxe7 {[%emt 0:03:21]} Qxe7 {[%emt 0:00:18]} 11. Nxd5 {[%emt 0:00:55]} exd5 {[%emt 0:00:03]} 12. dxc5 {[%emt 0:00:10]} Nxc5 {[%emt 0:00:53]} 13. Be2 {[%emt 0:01:45]} Bg4 {[%emt 0:05:34]} 14. O-O {[%emt 0:00:21]} Rac8 {[%emt 0:00:26]} 15. Rfd1 {[%emt 0:02:29]} Rfd8 {[%emt 0:01:08]} 16. h3 {[%emt 0:06:09]} Bh5 {[%emt 0:04:40]} 17. Qf5 {[%emt 0:10:00]} Bg6 {[%emt 0:03:38]} 18. Qe5 {[%emt 0:00:03]} Qxe5 {[%emt 0:02:07]} 19. Nxe5 {[%emt 0:00:02]} Bc2 {[%emt 0:07:52]} 20. Rd2 {[%emt 0:06:10]} Ne6 {[%emt 0:10:49]} 21. Bd1 {[%emt 0:22:51]} Be4 {[%emt 0:20:27]} 22. f3 {[%emt 0:03:22]} Bf5 {[%emt 0:04:51]} 23. Bb3 {[%emt 0:18:51]} Nc7 {[%emt 0:02:19]} 24. Kf2 {[%emt 0:03:37]} Be6 {[%emt 0:05:48]} 25. Rad1 {[%emt 0:00:31]} Rd6 {[%emt 0:09:03]} 26. Rc1 {[%emt 0:01:01]} f6 {[%emt 0:03:22]} 27. Ng6 {[%emt 0:04:37]} Kf7 {[%emt 0:00:02]} 28. Nf4 {[%emt 0:00:04]} Rc6 {[%emt 0:02:11]} 29. Rcd1 {[%emt 0:00:17]} Rd8 {[%emt 0:05:21]} 30. e4 {[%emt 0:04:50]} d4 {[%emt 0:03:19]} 31. Nxe6 {[%emt 0:00:48]} Nxe6 {[%emt 0:00:03]} 32. Rxd4 {[%emt 0:02:09]} Rxd4 {[%emt 0:00:02]} 33. Rxd4 {[%emt 0:00:02]} Ke7 {[%emt 0:00:55]} 34. Rd2 {[%emt 0:00:22]} Nf4 {[%emt 0:02:20]} 35. Ke3 {[%emt 0:00:17]} g5 {[%emt 0:00:38]} 36. h4 {[%emt 0:01:04]} Rd6 {[%emt 0:00:40]} 37. hxg5 {[%emt 0:01:38]} Rxd2 {[%emt 0:01:43]} 38. gxf6+ {[%emt 0:00:09]} Kxf6 {[%emt 0:00:27]} 39. Kxd2 {[%emt 0:00:06]} Nxg2 {[%emt 0:00:14]} 40. Ke2 {[%emt 0:00:11]} Nf4+ {[%emt 0:01:32]} 41. Kf2 {[%emt 0:00:51]} Kg5 {[%emt 0:01:49]} 42. Bc4 {[%emt 0:03:00]} h5 {[%emt 0:00:18]} 43. Kg3 {[%emt 0:02:29]} h4+ {[%emt 0:00:02]} 44. Kf2 {[%emt 0:00:33]} Kf6 {[%emt 0:00:21]} 45. Bf1 {[%emt 0:00:29]} Ke5 {[%emt 0:00:35]} 46. Bc4 {[%emt 0:00:30]} Kd4 {[%emt 0:00:48]} 47. Bf1 {[%emt 0:00:33]} Ke5 {[%emt 0:02:15]} 48. Bb5 {[%emt 0:00:32]} Kd4 {[%emt 0:00:18]} 49. b3 {[%emt 0:00:33]} a5 {[%emt 0:01:36]} 50. Bf1 {[%emt 0:00:27]} b6 {[%emt 0:00:21]} 51. Bc4 {[%emt 0:00:32]} a4 {[%emt 0:00:32]} 52. Bf1 {[%emt 0:00:18]} a3 {[%emt 0:00:35]} 53. Bc4 {[%emt 0:00:28]} Ke5 {[%emt 0:01:07]} 54. Bf1 {[%emt 0:00:35]} Kd4 {[%emt 0:00:10]} 55. Bc4 {[%emt 0:00:24]} Ke5 {[%emt 0:00:23]} 56. Bf1 {[%emt 0:01:20]} Kd4 {[%emt 0:01:40]} 57. Bc4 {[%emt 0:00:30]} Ke5 {[%emt 0:00:30]} 1/2-1/2

[Event "9th Bangabandhu Team Mixed 2021"]
[Site "Dhaka"]
[Date "2021.04.06"]
[Round "3.11"]
[White "Bappi, A.b."]
[Black "Ghosh, Chanchal Kumer"]
[Result "1-0"]
[ECO "A18"]
[WhiteElo "1854"]
[BlackElo "2052"]
[Annotator "NA"]
[PlyCount "180"]
[EventDate "2021.04.04"]
[EventType "team-tourn"]
[EventCountry "BAN"]
[SourceTitle "playchess.com"]
[Source "ChessBase"]
[SourceQuality "1"]
[TimeControl "5400+30"]

1. c4 {[%emt 1:30:30]} e6 {[%emt 1:30:30]} 2. Nc3 {[%emt 0:00:30]} Nf6 {[%emt 0:00:30]} 3. e4 {[%emt 0:00:30]} Bb4 {[%emt 0:00:30]} 4. e5 {[%emt 0:00:30]} Ng8 {[%emt 0:00:30]} 5. Qg4 {[%emt 0:00:30]} Bf8 {[%emt 0:00:30]} 6. d4 {[%emt 0:00:30]} d6 {[%emt 0:00:30]} 7. Nf3 {[%emt 0:00:30]} Nc6 {[%emt 0:00:30]} 8. Bg5 {[%emt 0:00:30]} f6 {[%emt 0:00:30]} 9. exf6 {[%emt 0:00:30]} Nxf6 {[%emt 0:00:30]} 10. Qh4 {[%emt 0:00:30]} Be7 {[%emt 0:00:30]} 11. Bd3 {[%emt 0:00:30]} Kf7 {[%emt 0:00:30]} 12. Rd1 {[%emt 0:00:30]} g6 {[%emt 0:00:30]} 13. Qf4 {[%emt 0:00:30]} Re8 {[%emt 0:00:30]} 14. Ne4 {[%emt 0:00:30]} Kg7 {[%emt 0:00:30]} 15. Bh6+ {[%emt 0:00:30]} Kg8 {[%emt 0:00:30]} 16. O-O {[%emt 0:00:30]} Nxe4 {[%emt 0:00:30]} 17. Bxe4 {[%emt 0:00:30]} Bf6 {[%emt 0:00:30]} 18. Rfe1 {[%emt 0:00:30]} Qe7 {[%emt 0:00:30]} 19. a3 {[%emt 0:00:30]} Nd8 {[%emt 0:00:30]} 20. Qd2 {[%emt 0:00:30]} Nf7 {[%emt 0:00:30]} 21. Be3 {[%emt 0:00:30]} Qf8 {[%emt 0:00:30]} 22. h3 {[%emt 0:00:30]} Qg7 {[%emt 0:00:30]} 23. Ng5 {[%emt 0:00:30]} Nd8 {[%emt 0:00:30]} 24. f4 {[%emt 0:00:30]} c6 {[%emt 0:00:30]} 25. Bf2 {[%emt 0:00:30]} Bd7 {[%emt 0:00:30]} 26. Bb1 {[%emt 0:00:30]} Nf7 {[%emt 0:00:30]} 27. Ne4 {[%emt 0:00:30]} Be7 {[%emt 0:00:30]} 28. Re2 {[%emt 0:00:30]} b6 {[%emt 0:00:30]} 29. b4 {[%emt 0:00:30]} d5 {[%emt 0:00:30]} 30. cxd5 {[%emt 0:00:30]} exd5 {[%emt 0:00:30]} 31. Ng3 {[%emt 0:00:30]} Nd6 {[%emt 0:00:30]} 32. Rde1 {[%emt 0:00:30]} Bf6 {[%emt 0:00:30]} 33. f5 {[%emt 0:00:30]} Rxe2 {[%emt 0:00:30]} 34. Rxe2 {[%emt 0:00:30]} Re8 {[%emt 0:00:30]} 35. fxg6 {[%emt 0:00:30]} hxg6 {[%emt 0:00:30]} 36. Rxe8+ {[%emt 0:00:30]} Bxe8 {[%emt 0:00:30]} 37. Qf4 {[%emt 0:00:30]} Nb5 {[%emt 0:00:30]} 38. Qe3 {[%emt 0:00:30]} Qe7 {[%emt 0:00:30]} 39. Qd3 $11 {[%emt 0:00:30]} Nxd4 {[%emt 0:00:30]} 40. Bxd4 {[%emt 0:00:30]} Bxd4+ {[%emt 0:00:30]} 41. Qxd4 {[%emt 0:00:30]} Qe1+ {[%emt 0:00:30]} 42. Kh2 {[%emt 0:00:30]} Qxb1 {[%emt 0:00:30]} 43. Qe5 {[%emt 0:00:30]} Bf7 {[%emt 0:00:30]} 44. Qb8+ {[%emt 0:00:30]} Kg7 {[%emt 0:00:30]} 45. Qe5+ {[%emt 0:00:30]} Kh7 {[%emt 0:00:30]} 46. Qf6 {[%emt 0:00:30]} Kg8 {[%emt 0:00:30]} 47. Qxc6 {[%emt 0:00:30]} Qb2 {[%emt 0:00:30]} 48. Qa8+ {[%emt 0:00:30]} Kg7 {[%emt 0:00:30]} 49. Qxa7 {[%emt 0:00:30]} Qf6 {[%emt 0:00:30]} 50. Qc7 {[%emt 0:00:30]} b5 {[%emt 0:00:30]} 51. Qd7 {[%emt 0:00:30]} Qb6 {[%emt 0:00:30]} 52. Qg4 {[%emt 0:00:30]} Qc7 {[%emt 0:00:30]} 53. Qd4+ {[%emt 0:00:30]} Kg8 {[%emt 0:00:30]} 54. Qc5 {[%emt 0:00:30]} Qb8 {[%emt 0:00:30]} 55. Qd4 {[%emt 0:00:30]} Be6 {[%emt 0:00:30]} 56. Qd3 {[%emt 0:00:30]} Kf7 {[%emt 0:00:30]} 57. Kh1 {[%emt 0:00:30]} Qe5 {[%emt 0:00:30]} 58. Ne2 {[%emt 0:00:30]} Bd7 {[%emt 0:00:30]} 59. Kg1 {[%emt 0:00:30]} Kf6 {[%emt 0:00:30]} 60. Qf3+ {[%emt 0:00:30]} Kg7 {[%emt 0:00:30]} 61. Qd3 {[%emt 0:00:30]} Bf5 {[%emt 0:00:30]} 62. Qd4 {[%emt 0:00:30]} Kf6 {[%emt 0:00:30]} 63. Kf2 {[%emt 0:00:30]} Bd7 {[%emt 0:00:30]} 64. Qxe5+ {[%emt 0:00:30]} Kxe5 {[%emt 0:00:30]} 65. Ke3 {[%emt 0:00:30]} Bc6 {[%emt 0:00:30]} 66. g4 {[%emt 0:00:30]} Bd7 {[%emt 0:00:30]} 67. Nd4 {[%emt 0:00:30]} Be8 {[%emt 0:00:30]} 68. Nf3+ {[%emt 0:00:30]} Ke6 {[%emt 0:00:30]} 69. Kd4 {[%emt 0:00:30]} Kd6 {[%emt 0:00:30]} 70. h4 {[%emt 0:00:30]} Bd7 {[%emt 0:00:30]} 71. Ne5 {[%emt 0:00:30]} Be8 {[%emt 0:00:30]} 72. Nd3 {[%emt 0:00:30]} Bd7 {[%emt 0:00:30]} 73. h5 {[%emt 0:00:30]} gxh5 {[%emt 0:00:30]} 74. gxh5 {[%emt 0:00:30]} Bf5 {[%emt 0:00:30]} 75. Nf4 {[%emt 0:00:30]} Bc2 {[%emt 0:00:30]} 76. Nd3 {[%emt 0:00:30]} Ke6 {[%emt 0:00:30]} 77. Nf4+ {[%emt 0:00:30]} Kf5 {[%emt 0:00:30]} 78. Nxd5 {[%emt 0:00:30]} Kg5 {[%emt 0:00:30]} 79. Nc3 {[%emt 0:00:30]} Kxh5 {[%emt 0:00:30]} 80. Nxb5 {[%emt 0:00:30]} Kg6 {[%emt 0:00:30]} 81. Ke5 {[%emt 0:00:30]} Kf7 {[%emt 0:00:30]} 82. Kd6 {[%emt 0:00:30]} Ke8 {[%emt 0:00:30]} 83. Kc7 {[%emt 0:00:30]} Ke7 {[%emt 0:00:30]} 84. Nc3 {[%emt 0:00:30]} Ke6 {[%emt 0:00:30]} 85. b5 {[%emt 0:00:30]} Bd3 {[%emt 0:00:30]} 86. b6 {[%emt 0:00:30]} Ba6 {[%emt 0:00:30]} 87. b7 {[%emt 0:00:30]} Bxb7 {[%emt 0:00:30]} 88. Kxb7 {[%emt 0:00:30]} Kd6 {[%emt 0:00:30]} 89. a4 {[%emt 0:00:30]} Kc5 {[%emt 0:00:30]} 90. a5 {[%emt 0:00:30]} Kd4 {[%emt 0:00:30]} 1-0

[Event "9th Bangabandhu Team Mixed 2021"]
[Site "Dhaka"]
[Date "2021.04.06"]
[Round "3.12"]
[White "Kazi Zarin, Tasnim"]
[Black "Israt, Jahan Diba"]
[Result "1-0"]
[ECO "B22"]
[WhiteElo "1790"]
[BlackElo "1675"]
[Annotator "NA"]
[PlyCount "41"]
[EventDate "2021.04.04"]
[EventType "team-tourn"]
[EventCountry "BAN"]
[SourceTitle "playchess.com"]
[Source "ChessBase"]
[SourceQuality "1"]
[TimeControl "5400+30"]

1. e4 {[%emt 1:30:30]} c5 {[%emt 1:30:30]} 2. c3 {[%emt 0:00:30]} d6 {[%emt 0:00:30]} 3. d4 {[%emt 0:00:30]} cxd4 {[%emt 0:00:30]} 4. cxd4 {[%emt 0:00:30]} Nf6 {[%emt 0:00:30]} 5. Nc3 {[%emt 0:00:30]} e6 {[%emt 0:00:30]} 6. Bd3 {[%emt 0:00:30]} Nc6 {[%emt 0:00:30]} 7. Nf3 {[%emt 0:00:30]} Be7 {[%emt 0:00:30]} 8. O-O {[%emt 0:00:30]} O-O {[%emt 0:00:30]} 9. a3 {[%emt 0:00:30]} a6 {[%emt 0:00:30]} 10. Re1 {[%emt 0:00:30]} b5 {[%emt 0:00:30]} 11. e5 {[%emt 0:00:30]} Nd5 {[%emt 0:00:30]} 12. Qc2 {[%emt 0:00:30]} Nxc3 {[%emt 0:00:30]} 13. Bxh7+ {[%emt 0:00:30]} Kh8 {[%emt 0:00:30]} 14. bxc3 {[%emt 0:00:30]} g6 {[%emt 0:00:30]} 15. Bxg6 {[%emt 0:00:30]} fxg6 {[%emt 0:00:30]} 16. Qxg6 {[%emt 0:00:30]} Qe8 {[%emt 0:00:30]} 17. Qh6+ {[%emt 0:00:30]} Kg8 {[%emt 0:00:30]} 18. Re4 {[%emt 0:00:30]} Qd8 {[%emt 0:00:30]} 19. Rg4+ {[%emt 0:00:30]} Bg5 {[%emt 0:00:30]} 20. Qg6+ {[%emt 0:00:30]} Kh8 {[%emt 0:00:30]} 21. Nxg5 {[%emt 0:00:30]} 1-0